bitfinex-derivatives/quotes_BTCF0:USTF0_20241009
["timestamp","ask_amount","ask_price","bid_price","bid_amount"]
[1728477614637,0.11979325,61985.0,61984.0,0.080725]
[1728477615340,0.00242083,61986.0,61985.0,0.080724]
[1728477615549,0.08314383,61986.0,61985.0,0.080724]
[1728477616843,0.10014383,61986.0,61985.0,0.081724]
[1728477617048,0.01942083,61986.0,61985.0,0.081724]
[1728477618149,0.017,61986.0,61985.0,0.081724]
[1728477619548,0.097683,61986.0,61985.0,0.081724]
[1728477619851,0.01696,61986.0,61985.0,0.081724]
[1728477620054,0.097683,61986.0,61985.0,0.081724]
[1728477620846,0.01696,61986.0,61985.0,0.081724]
[1728477621445,0.097683,61986.0,61985.0,0.081724]
[1728477621749,0.097683,61986.0,61985.0,0.001]
[1728477622446,0.097683,61986.0,61985.0,0.081724]
[1728477623149,0.097683,61986.0,61985.0,0.001]
[1728477624143,0.097683,61986.0,61985.0,0.081724]
[1728477624348,0.01696,61986.0,61985.0,0.081724]
[1728477625045,0.01696,61986.0,61985.0,0.111724]
[1728477627945,0.0038,61993.0,61985.0,1.115]
[1728477628142,0.0038,61996.0,61995.0,0.080711]
[1728477628353,0.080708,61997.0,61996.0,0.08071]
[1728477628760,0.080708,61997.0,61996.0,0.11381]
[1728477629854,0.094708,61997.0,61996.0,0.11481]
[1728477630543,0.108708,61997.0,61996.0,0.11481]
[1728477631251,0.028,61997.0,61996.0,0.47561]
[1728477631750,0.028,61997.0,61988.0,0.3608]
[1728477631751,0.218,61997.0,61988.0,0.3608]
[1728477632060,0.080717,61991.0,61990.0,0.080716]
[1728477633657,0.080717,61991.0,61990.0,0.089716]
[1728477634547,0.080677,61991.0,61990.0,0.089716]
[1728477636557,0.080677,61991.0,61990.0,0.089717]
[1728477638368,0.441512,61995.0,61994.0,0.080712]
[1728477638659,0.0038,62000.0,61997.0,0.080706]
[1728477638867,0.080708,61998.0,61997.0,0.080706]
[1728477639457,0.080716,61991.0,61990.0,0.00964]
[1728477639657,0.631516,61991.0,61990.0,0.005]
[1728477639867,0.631516,61991.0,61987.0,0.080721]
[1728477640166,0.08072,61988.0,61987.0,0.080721]
[1728477640772,0.080724,61985.0,61984.0,0.46382829]
[1728477641061,0.080724,61985.0,61984.0,0.46286829]
[1728477641268,0.080724,61985.0,61984.0,0.3608]
[1728477641855,0.080724,61985.0,61984.0,0.441525]
[1728477642263,0.080724,61985.0,61984.0,0.080725]
[1728477643052,0.081724,61985.0,61984.0,0.090725]
[1728477643257,0.001,61985.0,61984.0,0.090725]
[1728477643670,0.002,61985.0,61984.0,0.101725]
[1728477644961,0.082724,61985.0,61984.0,0.101725]
[1728477645369,0.002,61985.0,61984.0,0.101725]
[1728477645555,0.082724,61985.0,61984.0,0.101725]
[1728477649770,0.082724,61985.0,61984.0,0.18237011]
[1728477649971,0.082724,61985.0,61984.0,0.101725]
[1728477654679,0.082724,61985.0,61984.0,0.021]
[1728477655275,1.166724,61985.0,61984.0,0.00127603]
[1728477655482,0.79595762,61985.0,61984.0,0.08200103]
[1728477655777,0.272724,61985.0,61984.0,0.00127603]
[1728477661593,0.756724,61985.0,61984.0,0.00127603]
[1728477661766,0.788824,61985.0,61984.0,0.00127603]
[1728477661969,0.304824,61985.0,61984.0,0.00127603]
[1728477662977,0.665624,61985.0,61984.0,0.00127603]
[1728477663787,0.080733,61978.0,61977.0,0.08062632]
[1728477663975,0.441533,61978.0,61977.0,0.08062632]
[1728477664178,1.525573,61978.0,61977.0,0.08062632]
[1728477664474,0.080734,61977.0,61969.0,0.0038]
[1728477664672,0.3608,61971.0,61966.0,0.0038]
[1728477664886,0.3608,61971.0,61960.0,0.0323]
[1728477664887,0.3608,61971.0,61962.0,0.0038]
[1728477665178,1.47822,61971.0,61962.0,0.0038]
[1728477665691,1.558962,61971.0,61962.0,0.0038]
[1728477665984,0.080752,61963.0,61962.0,0.0038]
[1728477666185,0.080758,61959.0,61958.0,0.01699]
[1728477666484,0.270758,61959.0,61958.0,0.01615]
[1728477666686,1.354958,61959.0,61958.0,0.01615]
[1728477667379,0.080762,61956.0,61953.0,0.00242099]
[1728477667581,0.441562,61956.0,61953.0,0.00242099]
[1728477668176,1.525762,61956.0,61953.0,0.00242099]
[1728477668389,0.080772,61948.0,61947.0,0.13280271]
[1728477668581,0.631572,61948.0,61947.0,0.12900271]
[1728477669188,1.715852,61948.0,61947.0,0.04723471]
[1728477669493,0.080782,61941.0,61940.0,0.080782]
[1728477670581,0.081782,61941.0,61940.0,0.080782]
[1728477671093,0.082782,61941.0,61940.0,0.080782]
[1728477672694,0.3608,61942.0,61941.0,0.080781]
[1728477672991,0.44158,61942.0,61941.0,0.080781]
[1728477673185,0.3608,61942.0,61941.0,0.080781]
[1728477673488,0.36584,61948.0,61940.0,0.19]
[1728477673682,0.36584,61948.0,61937.0,0.36322155]
[1728477673683,0.0038,61951.0,61947.0,0.080772]
[1728477673891,0.37452226,61954.0,61947.0,0.080772]
[1728477673892,0.080773,61948.0,61947.0,0.080772]
[1728477674081,0.36322226,61954.0,61943.0,0.19]
[1728477674279,0.08077,61950.0,61949.0,0.080769]
[1728477675587,0.19,61952.0,61943.0,0.0038]
[1728477675893,0.080776,61945.0,61944.0,0.031]
[1728477676089,0.270776,61945.0,61944.0,0.031]
[1728477677380,0.275776,61945.0,61944.0,0.031]
[1728477677586,0.080784,61939.0,61938.0,0.0038]
[1728477677781,0.080785,61938.0,61937.0,0.00242155]
[1728477679299,0.993624,61939.0,61935.0,0.031]
[1728477679300,0.080788,61936.0,61935.0,0.031]
[1728477679890,0.080789,61935.0,61934.0,4e-05]
[1728477680189,0.270789,61935.0,61934.0,4e-05]
[1728477680989,1.355189,61935.0,61934.0,4e-05]
[1728477681185,1.359189,61935.0,61934.0,4e-05]
[1728477681495,1.359189,61935.0,61932.0,0.01615]
[1728477681792,0.080811,61918.0,61914.0,0.080815]
[1728477682092,0.50228472,61915.0,61914.0,0.01616]
[1728477682295,0.58309972,61915.0,61914.0,0.01616]
[1728477682494,1.58680472,61915.0,61902.0,0.3608]
[1728477682689,0.3608,61903.0,61891.0,0.080846]
[1728477682890,0.3608,61898.0,61897.0,0.080838]
[1728477683782,0.08084,61896.0,61888.0,0.14419292]
[1728477683986,0.27084,61896.0,61895.0,0.1603531]
[1728477684194,0.3668,61898.0,61888.0,0.33419292]
[1728477684394,0.080843,61894.0,61893.0,0.080842]
[1728477684593,0.19,61895.0,61894.0,0.080842]
[1728477684784,0.270841,61895.0,61894.0,0.080842]
[1728477684988,0.19,61895.0,61894.0,0.080842]
[1728477685297,0.270842,61895.0,61892.0,0.080845]
[1728477685600,0.5508,61893.0,61892.0,0.080845]
[1728477685993,0.3608,61893.0,61891.0,0.01617]
[1728477686198,0.3608,61893.0,61892.0,0.080845]
[1728477686401,0.5508,61893.0,61892.0,0.080845]
[1728477687100,0.080845,61892.0,61891.0,0.01617]
[1728477687308,0.080845,61892.0,61891.0,0.097016]
[1728477687801,0.3721,61903.0,61902.0,0.080832]
[1728477688003,0.3608,61903.0,61902.0,0.080832]
[1728477688403,0.0113,61914.0,61910.0,0.080821]
[1728477688604,0.080819,61912.0,61910.0,0.080821]
[1728477688906,0.080818,61913.0,61910.0,0.080821]
[1728477689119,0.19,61913.0,61910.0,0.080821]
[1728477689397,0.36322402,61911.0,61904.0,0.080828]
[1728477689604,0.080833,61901.0,61900.0,0.080834]
[1728477689900,0.55168,61905.0,61897.0,0.3608]
[1728477690200,0.5508,61905.0,61897.0,0.3608]
[1728477690701,0.01,61901.0,61897.0,0.441638]
[1728477690896,0.01,61901.0,61897.0,0.3608]
[1728477691092,0.01,61901.0,61900.0,0.080835]
[1728477692501,0.028,61905.0,61904.0,0.080829]
[1728477692802,0.028,61905.0,61904.0,0.250829]
[1728477693698,0.080825,61908.0,61904.0,0.19]
[1728477694003,0.080825,61908.0,61907.0,0.080825]
[1728477694197,0.080829,61904.0,61903.0,0.08083]
[1728477694394,0.55322402,61911.0,61900.0,0.19]
[1728477694593,0.55322402,61911.0,61902.0,0.080831]
[1728477694787,0.080831,61903.0,61902.0,0.080831]
[1728477695095,0.08083,61904.0,61903.0,0.080831]
[1728477696198,0.014,61905.0,61904.0,0.080829]
[1728477696399,0.014,61905.0,61904.0,0.270829]
[1728477696706,0.080826,61907.0,61906.0,0.080827]
[1728477697404,0.080821,61910.0,61909.0,0.080822]
[1728477697802,0.080827,61906.0,61905.0,0.080827]
[1728477698602,0.080834,61901.0,61900.0,0.080833]
[1728477699994,0.090834,61901.0,61900.0,0.080833]
[1728477700401,0.01,61901.0,61900.0,0.270833]
[1728477701205,0.014,61906.0,61905.0,0.080828]
[1728477701412,0.014,61906.0,61905.0,0.270828]
[1728477701798,0.0113,61917.0,61905.0,0.270828]
[1728477701799,0.0113,61917.0,61910.0,0.080821]
[1728477702097,0.44404402,61911.0,61910.0,0.080821]
[1728477703509,0.37722402,61911.0,61910.0,0.080821]
[1728477703809,0.3748,61911.0,61910.0,0.080821]
[1728477704011,0.080825,61908.0,61907.0,0.080823]
[1728477704394,0.080825,61908.0,61900.0,0.19]
[1728477704708,0.08083,61904.0,61903.0,0.08083]
[1728477705204,0.08083,61904.0,61903.0,0.56547]
[1728477705403,0.08083,61904.0,61903.0,0.08083]
[1728477706305,0.09383,61904.0,61903.0,0.08083]
[1728477706500,0.10283,61904.0,61903.0,0.08183]
[1728477707607,0.10283,61904.0,61903.0,0.001]
[1728477710312,0.10283,61904.0,61903.0,0.271831]
[1728477710515,0.022,61904.0,61903.0,0.081831]
[1728477710717,0.102829,61904.0,61903.0,0.081831]
[1728477711013,0.292829,61904.0,61903.0,0.001]
[1728477711612,0.102829,61904.0,61903.0,0.001]
[1728477713512,0.102829,61904.0,61903.0,0.081831]
[1728477713712,0.102829,61904.0,61903.0,0.16256426]
[1728477714018,0.102829,61904.0,61903.0,0.18545961]
[1728477714907,0.102829,61904.0,61903.0,0.21695961]
[1728477715108,0.022,61904.0,61903.0,0.21695961]
[1728477715617,0.022,61904.0,61903.0,0.3138507]
[1728477715814,0.022,61904.0,61903.0,0.31365551]
[1728477716016,0.022,61904.0,61903.0,0.21676442]
[1728477717803,0.102829,61904.0,61903.0,0.21676442]
[1728477718408,0.102829,61904.0,61903.0,0.10443342]
[1728477719013,0.292829,61904.0,61903.0,0.10443342]
[1728477719419,0.292829,61904.0,61903.0,0.20139178]
[1728477719818,0.292829,61904.0,61903.0,0.001]
[1728477720323,0.33527668,61904.0,61903.0,0.001]
[1728477720520,0.292829,61904.0,61903.0,0.001]
[1728477721426,0.33515261,61904.0,61903.0,0.001]
[1728477721725,0.292829,61904.0,61903.0,0.001]
[1728477723210,0.292829,61904.0,61894.0,0.0038]
[1728477723211,0.69664,61904.0,61894.0,0.0038]
[1728477723522,0.69664,61904.0,61888.0,0.0038]
[1728477723523,0.080849,61889.0,61888.0,0.0038]
[1728477723715,0.080852,61887.0,61886.0,0.08322738]
[1728477723915,0.270852,61887.0,61886.0,0.08322738]
[1728477724423,0.270852,61887.0,61886.0,0.0808035]
[1728477724721,0.270852,61887.0,61878.0,0.01617]
[1728477724722,0.080858,61882.0,61878.0,0.01617]
[1728477724921,0.631658,61882.0,61878.0,0.01617]
[1728477725125,0.08087,61873.0,61872.0,0.0054]
[1728477725325,0.19,61873.0,61871.0,0.1130395]
[1728477725623,0.301071,61872.0,61871.0,0.1130395]
[1728477726024,0.751071,61872.0,61871.0,0.1130395]
[1728477726419,0.720871,61872.0,61871.0,0.1130395]
[1728477726825,0.721871,61872.0,61871.0,0.1210395]
[1728477727029,0.721871,61872.0,61871.0,0.008]
[1728477727425,0.531871,61872.0,61871.0,0.008]
[1728477727631,0.531871,61872.0,61871.0,0.088872]
[1728477727922,0.452,61872.0,61871.0,0.091872]
[1728477728131,0.722871,61872.0,61871.0,0.011]
[1728477728329,0.272871,61872.0,61871.0,0.091872]
[1728477728526,0.002,61872.0,61871.0,0.091872]
[1728477729033,0.002,61872.0,61871.0,0.452672]
[1728477729324,0.631657,61884.0,61880.0,0.080861]
[1728477729523,0.632537,61884.0,61882.0,0.080858]
[1728477729726,0.631657,61884.0,61882.0,0.080858]
[1728477730122,0.080862,61879.0,61875.0,0.080866]
[1728477730335,0.080865,61877.0,61872.0,0.063]
[1728477730521,0.19,61879.0,61871.0,0.36176]
[1728477730735,0.080864,61878.0,61872.0,0.080871]
[1728477731031,0.001,61881.0,61880.0,0.080861]
[1728477731328,0.19,61883.0,61875.0,0.002]
[1728477731536,0.19,61883.0,61879.0,0.080862]
[1728477731831,0.080861,61880.0,61879.0,0.080862]
[1728477732331,0.3618,61884.0,61881.0,0.080859]
[1728477732529,0.3608,61884.0,61882.0,0.113657]
[1728477733919,0.080857,61883.0,61882.0,0.120657]
[1728477734322,0.080857,61883.0,61882.0,0.007]
[1728477735022,0.080857,61883.0,61882.0,0.011]
[1728477735735,0.081857,61883.0,61882.0,0.012]
[1728477736730,0.082857,61883.0,61882.0,0.011]
[1728477740935,0.149057,61883.0,61882.0,0.011]
[1728477741735,0.082857,61883.0,61882.0,0.011]
[1728477743844,1.167657,61883.0,61872.0,0.0038]
[1728477744138,0.080877,61867.0,61866.0,0.01997]
[1728477744338,0.631677,61867.0,61866.0,0.01617]
[1728477745447,0.080904,61847.0,61846.0,0.09648495]
[1728477745644,1.116784,61847.0,61846.0,0.09648495]
[1728477746139,1.716784,61847.0,61846.0,0.09648495]
[1728477746340,1.716784,61847.0,61825.0,0.5508]
[1728477746341,0.48508,61846.0,61826.0,0.02187984]
[1728477746539,0.63173,61827.0,61826.0,0.02187984]
[1728477747148,0.63173,61827.0,61814.0,0.09656171]
[1728477747149,0.080932,61825.0,61814.0,0.09656171]
[1728477747363,0.080932,61825.0,61814.0,0.28656171]
[1728477747651,0.080932,61825.0,61814.0,0.09656171]
[1728477747842,0.080932,61825.0,61818.0,0.080941]
[1728477748039,0.9156,61827.0,61815.0,0.2211]
[1728477748236,0.7256,61827.0,61817.0,0.3608]
[1728477748442,0.080932,61826.0,61817.0,0.080943]
[1728477748651,0.080932,61826.0,61819.0,0.08094]
[1728477748851,0.080932,61826.0,61815.0,0.0632]
[1728477749159,0.080932,61826.0,61815.0,0.0311]
[1728477749544,0.080932,61825.0,61815.0,0.0311]
[1728477749744,0.086932,61825.0,61815.0,0.0311]
[1728477749941,1.172172,61825.0,61814.0,0.09656171]
[1728477750260,0.441745,61815.0,61814.0,0.09656171]
[1728477750447,0.3608,61815.0,61814.0,0.09656171]
[1728477750654,0.005,61826.0,61817.0,0.080943]
[1728477750655,0.3608,61822.0,61817.0,0.080943]
[1728477750847,0.005,61825.0,61818.0,0.0302]
[1728477751047,0.19,61824.0,61818.0,0.0302]
[1728477751249,0.005,61825.0,61823.0,0.5508]
[1728477751445,0.005,61825.0,61824.0,0.111334]
[1728477752558,0.19,61833.0,61824.0,0.0304]
[1728477752760,0.19,61841.0,61824.0,0.3912]
[1728477752967,0.19,61833.0,61832.0,0.080923]
[1728477753253,0.080916,61838.0,61833.0,0.080922]
[1728477753452,0.19,61836.0,61824.0,0.04659]
[1728477753648,0.080919,61835.0,61824.0,0.04659]
[1728477753853,0.083922,61833.0,61831.0,0.080924]
[1728477754054,0.083922,61833.0,61832.0,0.080923]
[1728477754251,0.003,61833.0,61832.0,0.080923]
[1728477754651,0.003,61833.0,61832.0,0.080803]
[1728477755859,0.3608,61839.0,61838.0,0.080915]
[1728477756163,0.3608,61839.0,61832.0,0.566003]
[1728477756164,0.3608,61846.0,61839.0,0.080914]
[1728477756465,0.3608,61846.0,61845.0,0.080906]
[1728477756645,0.19,61850.0,61847.0,0.080897]
[1728477756851,0.3608,61853.0,61849.0,0.080893]
[1728477757058,0.19,61850.0,61844.0,0.0614]
[1728477757260,0.3608,61853.0,61845.0,0.19]
[1728477757562,0.080883,61858.0,61857.0,0.080884]
[1728477757762,0.00242571,61859.0,61857.0,0.19]
[1728477758061,0.00242571,61859.0,61858.0,0.441683]
[1728477758262,0.080871,61867.0,61866.0,0.080871]
[1728477758560,0.19,61867.0,61858.0,0.36164]
[1728477758764,0.080873,61865.0,61858.0,0.00084]
[1728477758967,0.080883,61858.0,61854.0,0.01619]
[1728477759149,0.3608,61855.0,61836.0,0.5508]
[1728477759355,0.0809,61845.0,61840.0,0.01619]
[1728477759660,0.0809,61845.0,61844.0,0.032925]
[1728477759866,0.0809,61845.0,61844.0,0.002425]
[1728477761265,0.0819,61845.0,61844.0,0.002425]
[1728477761455,0.001,61845.0,61844.0,0.192425]
[1728477761653,0.001,61845.0,61844.0,0.273326]
[1728477761860,0.001,61845.0,61844.0,1.358406]
[1728477762058,0.3608,61849.0,61848.0,0.270896]
[1728477762659,0.3608,61849.0,61844.0,0.192425]
[1728477762965,0.080899,61846.0,61845.0,0.0809]
[1728477763662,0.0809,61845.0,61844.0,0.002425]
[1728477763867,0.0809,61845.0,61844.0,0.003425]
[1728477765260,0.0809,61845.0,61844.0,0.001]
[1728477765464,0.5309,61845.0,61844.0,0.001]
[1728477766566,0.5309,61845.0,61844.0,0.003]
[1728477766861,0.5309,61845.0,61844.0,0.002]
[1728477767066,0.080902,61843.0,61842.0,0.080903]
[1728477767562,0.080905,61841.0,61840.0,0.01619]
[1728477767774,0.002,61845.0,61840.0,0.37699]
[1728477768066,0.002,61845.0,61844.0,0.270901]
[1728477768266,0.002,61845.0,61844.0,0.080901]
[1728477768466,0.002,61845.0,61844.0,1.165981]
[1728477768667,0.002,61845.0,61844.0,1.355981]
[1728477768859,0.198,61862.0,61844.0,1.355981]
[1728477768860,0.092189,61853.0,61844.0,1.355981]
[1728477769061,0.092189,61853.0,61852.0,0.08089]
[1728477769062,0.080889,61853.0,61852.0,0.08089]
[1728477769568,0.080729,61853.0,61852.0,0.08089]
[1728477770458,0.080729,61853.0,61852.0,0.08189]
[1728477770675,0.081729,61853.0,61852.0,0.08589]
[1728477771270,0.080729,61853.0,61852.0,0.08189]
[1728477771470,0.081729,61853.0,61852.0,0.08589]
[1728477771667,0.080885,61857.0,61852.0,0.3658]
[1728477771970,0.080872,61866.0,61865.0,0.080873]
[1728477772769,0.36196,61874.0,61869.0,0.080868]
[1728477773071,0.3608,61870.0,61869.0,0.080868]
[1728477773257,0.45358555,61871.0,61870.0,0.080867]
[1728477773570,0.00242555,61871.0,61870.0,0.080867]
[1728477773773,0.080872,61866.0,61865.0,0.006]
[1728477773964,1.081672,61866.0,61865.0,0.006]
[1728477774158,1.081672,61866.0,61865.0,0.002]
[1728477774465,0.891672,61866.0,61853.0,0.3416]
[1728477774661,0.441672,61866.0,61859.0,0.080881]
[1728477774973,0.3608,61866.0,61853.0,0.3416]
[1728477775171,0.08088,61860.0,61858.0,0.080881]
[1728477775357,0.080883,61859.0,61857.0,0.080883]
[1728477775564,0.080883,61859.0,61858.0,0.080883]
[1728477776371,0.080887,61855.0,61854.0,0.097078]
[1728477776677,0.080887,61855.0,61854.0,0.01619]
[1728477777775,0.085887,61855.0,61854.0,0.01719]
[1728477778270,0.082887,61855.0,61854.0,0.01619]
[1728477778779,0.443687,61855.0,61854.0,0.01619]
[1728477779083,0.082887,61855.0,61854.0,0.097078]
[1728477779263,0.083887,61855.0,61854.0,0.100078]
[1728477779880,0.082887,61855.0,61854.0,0.02519]
[1728477780473,0.088887,61855.0,61854.0,0.01719]
[1728477781668,0.088887,61855.0,61854.0,0.098078]
[1728477782071,0.081887,61855.0,61854.0,0.103078]
[1728477782580,0.091887,61855.0,61854.0,0.103078]
[1728477782769,0.011,61855.0,61854.0,1.828878]
[1728477783178,0.3608,61869.0,61854.0,1.74799]
[1728477783475,0.080872,61866.0,61865.0,0.080872]
[1728477783675,0.3608,61869.0,61861.0,0.28]
[1728477783881,0.080869,61869.0,61859.0,0.3608]
[1728477784074,0.45,61872.0,61871.0,0.080866]
[1728477784283,0.530864,61872.0,61871.0,0.080866]
[1728477784582,0.080744,61872.0,61871.0,0.080866]
[1728477784975,0.080858,61877.0,61871.0,0.3608]
[1728477785283,0.080858,61877.0,61876.0,0.080859]
[1728477785670,0.8108,61883.0,61878.0,0.080855]
[1728477785869,0.8108,61883.0,61874.0,0.28]
[1728477786079,0.080854,61880.0,61878.0,0.080856]
[1728477786273,0.080855,61879.0,61878.0,0.080856]
[1728477786576,0.3608,61883.0,61874.0,0.28]
[1728477786577,0.080859,61877.0,61874.0,0.360861]
[1728477786779,0.080859,61877.0,61875.0,0.08086]
[1728477786983,0.080859,61877.0,61876.0,0.080859]
[1728477787481,0.080851,61882.0,61881.0,0.080852]
[1728477788687,0.28,61893.0,61881.0,0.080852]
[1728477788688,0.50554849,61896.0,61881.0,1.4456]
[1728477788988,0.14602849,61896.0,61895.0,0.080834]
[1728477789176,0.14474849,61896.0,61895.0,0.360834]
[1728477789377,0.0038,61906.0,61905.0,0.080821]
[1728477789582,0.3608,61910.0,61904.0,0.28]
[1728477789785,0.3608,61910.0,61898.0,0.01619]
[1728477789786,0.28,61907.0,61898.0,0.01619]
[1728477789982,0.080829,61899.0,61898.0,0.01619]
[1728477790182,0.441629,61899.0,61898.0,0.01619]
[1728477790985,0.441629,61899.0,61898.0,0.01719]
[1728477791489,0.441629,61899.0,61895.0,0.001]
[1728477791786,0.360833,61896.0,61895.0,0.001]
[1728477792580,0.810833,61896.0,61895.0,0.001]
[1728477792777,0.080849,61884.0,61883.0,0.08085]
[1728477792973,0.810833,61896.0,61882.0,0.00242355]
[1728477792974,0.3608,61891.0,61882.0,0.00242355]
[1728477793292,0.080843,61888.0,61883.0,0.6408]
[1728477793589,0.3608,61891.0,61883.0,0.080849]
[1728477793884,0.001,61884.0,61883.0,0.087849]
[1728477794489,0.080849,61884.0,61883.0,0.080849]
[1728477794680,0.080849,61884.0,61883.0,0.003]
[1728477796087,0.080849,61884.0,61883.0,0.08385]
[1728477796280,0.080849,61884.0,61883.0,0.08585]
[1728477796595,0.001,61884.0,61883.0,0.45265]
[1728477797292,0.080836,61894.0,61893.0,0.080837]
[1728477797583,0.080836,61894.0,61883.0,1.81745]
[1728477797584,0.45120001,61896.0,61895.0,0.080834]
[1728477797783,0.45,61896.0,61895.0,0.080834]
[1728477798087,0.530833,61896.0,61895.0,0.080834]
[1728477798283,0.3608,61900.0,61898.0,0.08083]
[1728477798496,0.10681439,61899.0,61898.0,0.08083]
[1728477799079,0.10681439,61899.0,61898.0,0.56551]
[1728477799388,0.24132757,61905.0,61904.0,0.080823]
[1728477799983,0.16050657,61905.0,61904.0,0.080823]
[1728477800382,0.16050657,61905.0,61904.0,0.441623]
[1728477800792,0.16050657,61905.0,61904.0,1.526223]
[1728477801484,0.17450657,61905.0,61904.0,1.527223]
[1728477801879,0.3646,61915.0,61913.0,0.08081]
[1728477802089,0.3646,61915.0,61904.0,0.3618]
[1728477802090,0.3608,61915.0,61914.0,0.080809]
[1728477802293,0.441608,61915.0,61914.0,0.080809]
[1728477802496,0.3608,61915.0,61914.0,0.080809]
[1728477802686,0.08701943,61925.0,61917.0,0.080804]
[1728477802998,0.0808,61921.0,61919.0,0.080803]
[1728477803289,0.0808,61921.0,61913.0,0.001]
[1728477803290,0.080798,61923.0,61922.0,0.080797]
[1728477803885,0.012,61925.0,61924.0,0.080796]
[1728477804086,0.092795,61925.0,61924.0,0.080796]
[1728477804992,0.099795,61925.0,61924.0,0.081796]
[1728477805197,0.019,61925.0,61924.0,0.081796]
[1728477805397,0.007,61925.0,61924.0,0.081796]
[1728477806496,0.019,61925.0,61924.0,0.082796]
[1728477806992,0.007,61925.0,61924.0,0.081796]
[1728477807192,0.012,61925.0,61924.0,1.166276]
[1728477807503,0.0038,61930.0,61929.0,0.08079]
[1728477807707,0.080785,61933.0,61929.0,0.76444]
[1728477808002,0.08078,61937.0,61936.0,0.080781]
[1728477808186,0.080778,61938.0,61936.0,0.28]
[1728477808387,0.08319856,61940.0,61936.0,0.28]
[1728477809484,0.080776,61940.0,61936.0,0.28]
[1728477809689,0.080776,61940.0,61939.0,0.080777]
[1728477809895,0.080769,61945.0,61939.0,0.01617]
[1728477810096,0.080769,61945.0,61942.0,0.080773]
[1728477810297,0.04651075,61944.0,61942.0,0.080773]
[1728477810492,0.04651075,61943.0,61940.0,0.27994166]
[1728477811296,0.04651075,61943.0,61939.0,0.01717]
[1728477811509,0.080776,61940.0,61939.0,0.00760401]
[1728477811695,0.080779,61937.0,61936.0,0.001]
[1728477812006,0.080796,61924.0,61919.0,0.0038]
[1728477812307,0.360796,61924.0,61920.0,0.01616]
[1728477813800,0.0808,61921.0,61920.0,0.01616]
[1728477814508,0.080821,61905.0,61904.0,0.1325187]
[1728477814695,0.08082,61907.0,61904.0,0.080822]
[1728477814895,0.3608,61908.0,61901.0,0.00242258]
[1728477814896,0.080825,61902.0,61901.0,0.00242258]
[1728477815198,0.425465,61902.0,61901.0,0.00242258]
[1728477816498,0.425465,61902.0,61901.0,0.00342258]
[1728477816499,0.705465,61902.0,61901.0,0.00342258]
[1728477817298,0.425465,61902.0,61901.0,0.00742258]
[1728477817899,0.426465,61902.0,61901.0,0.01342258]
[1728477818207,0.426465,61902.0,61901.0,0.01242258]
[1728477818405,0.427465,61902.0,61901.0,0.08324858]
[1728477818709,0.428465,61902.0,61901.0,0.09124858]
[1728477819208,0.3618,61902.0,61901.0,0.09724858]
[1728477819998,0.3608,61902.0,61901.0,0.08924858]
[1728477820201,0.3618,61902.0,61901.0,0.09924858]
[1728477820401,0.442625,61902.0,61901.0,0.09924858]
[1728477820602,0.442625,61902.0,61901.0,0.01842258]
[1728477821496,0.3618,61902.0,61901.0,0.37924858]
[1728477821703,0.001,61902.0,61901.0,0.37924858]
[1728477822296,0.00321501,61902.0,61901.0,0.37924858]
[1728477822601,0.080816,61909.0,61901.0,1.46388858]
[1728477822799,0.44161,61914.0,61908.0,0.28]
[1728477822999,0.080815,61911.0,61910.0,0.080814]
[1728477823593,0.3608,61914.0,61908.0,0.28]
[1728477823796,0.3608,61914.0,61913.0,0.360811]
[1728477824701,0.0038,61922.0,61918.0,0.080803]
[1728477824898,0.080803,61919.0,61918.0,0.080803]
[1728477825094,0.3608,61926.0,61915.0,0.3608]
[1728477825299,0.080798,61923.0,61915.0,0.3608]
[1728477825500,0.080798,61923.0,61922.0,0.080799]
[1728477825810,0.080798,61923.0,61922.0,0.360799]
[1728477826203,0.3608,61926.0,61925.0,0.080795]
[1728477826512,0.441594,61926.0,61925.0,0.080795]
[1728477827007,0.080798,61923.0,61922.0,0.360799]
[1728477827205,0.3608,61926.0,61925.0,0.080795]
[1728477827510,0.450594,61926.0,61925.0,0.081795]
[1728477828112,0.3698,61926.0,61925.0,0.081795]
[1728477828302,0.0038,61937.0,61936.0,0.080781]
[1728477828615,0.00242246,61939.0,61938.0,0.080778]
[1728477828616,0.08320146,61939.0,61938.0,0.080778]
[1728477829509,0.00234246,61939.0,61938.0,0.080778]
[1728477830805,0.17596761,61942.0,61941.0,0.080774]
[1728477831001,0.17596761,61942.0,61941.0,0.360774]
[1728477831320,0.084562,61951.0,61950.0,0.080763]
[1728477831609,0.080763,61950.0,61949.0,0.28]
[1728477831807,0.080768,61946.0,61945.0,0.3608]
[1728477832007,0.080768,61946.0,61945.0,0.441569]
[1728477833305,0.080767,61949.0,61948.0,0.080764]
[1728477833711,0.080768,61946.0,61945.0,0.001]
[1728477834206,0.08078,61937.0,61933.0,0.3608]
[1728477834610,0.08078,61937.0,61934.0,0.080783]
[1728477834805,0.08078,61937.0,61935.0,0.080782]
[1728477834998,0.08078,61937.0,61931.0,0.080786]
[1728477835199,0.44158,61937.0,61931.0,0.080787]
[1728477835521,0.44258,61937.0,61924.0,0.0316]
[1728477835899,0.44258,61937.0,61925.0,0.080794]
[1728477836219,0.44258,61937.0,61926.0,0.080793]
[1728477836406,0.001,61946.0,61945.0,0.080769]
[1728477836606,0.0113,61954.0,61945.0,0.6408]